bitfinex/quotes_SOLUSD_20250706
["timestamp","ask_amount","ask_price","bid_price","bid_amount"]
[1751809357837,7.39657347,151.19,151.14,14.69634109]
[1751809358168,14.01036931,151.2,151.14,14.69634109]
[1751809358364,7.39657347,151.19,151.14,14.69634109]
[1751809358746,7.39657347,151.18,151.14,14.69634109]
[1751809358946,7.39657347,151.19,151.14,8.08]
[1751809359256,7.39657347,151.18,151.14,8.08]
[1751809359453,7.39657347,151.19,151.11,6.4103]
[1751809359771,7.39657347,151.18,151.15,0.03]
[1751809359943,1.6173,151.22,151.15,0.03]
[1751809359944,7.39657347,151.17,151.15,0.03]
[1751809360276,7.39657347,151.19,151.15,0.03]
[1751809360972,7.39657347,151.18,151.15,0.03]
[1751809361369,7.39657347,151.2,151.15,0.03]
[1751809361573,7.39657347,151.19,151.15,23.18580548]
[1751809361861,7.39657347,151.22,151.16,1.6373]
[1751809362051,7.39657347,151.23,151.16,1.6373]
[1751809362254,7.39657347,151.22,151.16,1.6373]
[1751809362448,7.39657347,151.23,151.16,1.6373]
[1751809362648,7.39657347,151.22,151.16,1.6373]
[1751809362856,7.39657347,151.23,151.16,1.6373]
[1751809363060,7.39657347,151.22,151.16,1.6373]
[1751809363263,0.06,151.24,151.16,1.6373]
[1751809363264,7.39657347,151.23,151.16,1.6373]
[1751809363868,7.39657347,151.22,151.17,6.61506912]
[1751809364066,7.39657347,151.23,151.17,6.61506912]
[1751809364263,7.39657347,151.22,151.17,6.61506912]
[1751809364448,7.39657347,151.23,151.17,6.61506912]
[1751809364648,7.39657347,151.22,151.17,6.61506912]
[1751809364867,7.39657347,151.21,151.17,6.61506912]
[1751809365065,7.39657347,151.22,151.16,8.2526966]
[1751809365268,7.39657347,151.21,151.16,6.6153966]
[1751809365451,7.39657347,151.22,151.16,6.6153966]
[1751809365861,7.39657347,151.21,151.16,6.6153966]
[1751809366054,7.39657347,151.2,151.16,6.6153966]
[1751809366261,7.39657347,151.21,151.16,6.6153966]
[1751809366579,7.39657347,151.2,151.16,6.6153966]
[1751809366754,7.39657347,151.21,151.16,6.6153966]
[1751809367068,7.39657347,151.2,151.15,6.64587864]
[1751809367270,7.39657347,151.19,151.15,6.64587864]
[1751809367450,7.39657347,151.2,151.15,6.64587864]
[1751809367772,7.39657347,151.19,151.15,6.64587864]
[1751809368072,7.39657347,151.21,151.15,6.64587864]
[1751809368246,7.39657347,151.2,151.15,6.64587864]
[1751809368451,7.39657347,151.19,151.15,0.03]
[1751809368650,7.39657347,151.18,151.15,0.03]
[1751809368875,7.39657347,151.2,151.15,0.03]
[1751809369093,7.39657347,151.19,151.15,0.03]
[1751809369249,14.01053259,151.2,151.15,0.03]
[1751809369452,7.39657347,151.19,151.15,0.03]
[1751809371064,7.39657347,151.2,151.15,0.03]
[1751809372655,14.01071015,151.2,151.15,0.03]
[1751809372992,7.39657347,151.19,151.15,0.03]
[1751809373857,7.39657347,151.18,151.15,0.03]
[1751809374177,9.27113649,151.24,151.15,0.03]
[1751809374374,16.62476576,151.23,151.15,0.03]
[1751809374677,16.62476576,151.22,151.15,0.03]
[1751809374869,7.41362927,151.21,151.15,0.03]
[1751809375072,7.41362927,151.2,151.15,0.03]
[1751809375274,0.06,151.24,151.15,0.03]
[1751809375275,7.41362927,151.19,151.15,0.03]
[1751809375472,7.41362927,151.2,151.15,0.03]
[1751809375673,7.41362927,151.19,151.15,0.03]
[1751809375866,7.41362927,151.2,151.15,0.03]
[1751809376178,7.41362927,151.19,151.15,0.03]
[1751809376376,7.41362927,151.2,151.15,0.03]
[1751809376567,7.41362927,151.19,151.15,0.03]
[1751809376755,7.41362927,151.2,151.15,0.03]
[1751809376956,7.41362927,151.19,151.15,0.03]
[1751809377156,7.41362927,151.2,151.15,0.03]
[1751809377371,7.41362927,151.19,151.15,0.03]
[1751809377564,7.41362927,151.2,151.15,0.03]
[1751809377861,7.41362927,151.19,151.15,0.03]
[1751809378071,7.41362927,151.2,151.15,0.03]
[1751809378254,7.41362927,151.19,151.15,0.03]
[1751809378450,7.41362927,151.18,151.15,0.03]
[1751809378677,7.41362927,151.19,151.15,0.03]
[1751809378857,7.41362927,151.18,151.15,0.03]
[1751809379068,7.41362927,151.19,151.15,0.03]
[1751809379570,7.41362927,151.18,151.15,0.03]
[1751809379771,7.41362927,151.17,151.15,0.03]
[1751809380086,7.41362927,151.19,151.15,0.03]
[1751809380384,7.41362927,151.18,151.15,0.03]
[1751809380581,7.41362927,151.17,151.15,0.03]
[1751809380780,6.61422234,151.19,151.15,0.03]
[1751809381086,7.42145045,151.18,151.15,0.03]
[1751809381272,7.42145045,151.17,151.15,0.03]
[1751809381469,6.61375661,151.2,151.15,0.03]
[1751809381773,7.42277867,151.19,151.15,0.03]
[1751809381964,7.42277867,151.18,151.15,0.03]
[1751809382160,6.61375661,151.2,151.15,0.03]
[1751809382161,7.42277867,151.17,151.15,0.03]
[1751809382365,9.21113649,151.2,151.15,0.03]
[1751809382566,7.4235251,151.19,151.15,0.03]
[1751809382767,7.4235251,151.18,151.15,0.03]
[1751809382973,7.4235251,151.17,151.15,0.03]
[1751809383180,7.4235251,151.19,151.15,0.03]
[1751809383371,7.4235251,151.18,151.15,0.03]
[1751809383572,7.4235251,151.17,151.15,0.03]
[1751809383773,9.27113649,151.2,151.15,0.03]
[1751809383975,7.42392395,151.19,151.15,0.03]
[1751809384175,7.42392395,151.18,151.15,0.03]
[1751809384485,7.42392395,151.17,151.15,0.03]
[1751809384692,7.42392395,151.16,151.15,0.03]
[1751809384885,7.42392395,151.19,151.15,0.03]
[1751809385087,7.42392395,151.18,151.15,0.03]
[1751809385289,7.42392395,151.17,151.15,0.03]
[1751809385484,7.42392395,151.19,151.15,0.03]
[1751809385688,0.06,151.2,151.16,26.0]
[1751809385871,0.06,151.2,151.17,6.2012]
[1751809386769,0.06,151.2,151.15,0.03]
[1751809386969,7.42172034,151.19,151.15,0.03]
[1751809387183,7.42172034,151.18,151.15,0.03]
[1751809387389,7.42172034,151.17,151.15,0.03]
[1751809387589,7.42172034,151.16,151.15,0.03]
[1751809388379,7.42172034,151.17,151.15,0.03]
[1751809388583,7.42172034,151.16,151.15,0.03]
[1751809388891,7.42172034,151.18,151.15,0.03]
[1751809389093,7.42172034,151.17,151.15,0.03]
[1751809389395,7.42172034,151.16,151.15,0.03]
[1751809390382,7.42172034,151.18,151.15,0.03]
[1751809390584,0.06,151.2,151.15,0.03]
[1751809390901,7.41987665,151.19,151.15,0.03]
[1751809391196,0.06,151.2,151.15,0.03]
[1751809391695,7.47987665,151.2,151.15,0.03]
[1751809391897,7.41987665,151.19,151.15,0.03]
[1751809392098,0.06,151.2,151.15,0.03]
[1751809392475,7.47987665,151.2,151.15,0.03]
[1751809392680,0.06,151.2,151.15,0.03]
[1751809393386,7.47987665,151.2,151.15,0.03]
[1751809393709,7.41987665,151.19,151.15,0.03]
[1751809394195,0.06,151.2,151.15,0.03]
[1751809394500,7.41987665,151.19,151.15,0.03]
[1751809395677,0.06,151.2,151.15,0.03]
[1751809396791,7.42332149,151.19,151.15,0.03]
[1751809397100,7.42344145,151.18,151.15,0.03]
[1751809397407,0.06,151.2,151.15,0.03]
[1751809397408,7.42408483,151.17,151.15,0.03]
[1751809397596,15.88495614,151.2,151.15,0.03]
[1751809397783,7.42574494,151.19,151.15,0.03]
[1751809397982,7.42574494,151.18,151.15,0.03]
[1751809398184,7.42574494,151.17,151.15,0.03]
[1751809398491,7.42581572,151.16,151.15,0.03]
[1751809401807,31.54615895,151.16,151.09,0.03]
[1751809401991,9.28651066,151.11,151.09,0.03]
[1751809402192,7.42581572,151.1,151.09,0.03]
[1751809402585,7.42581572,151.11,151.09,0.03]
[1751809402911,7.42581572,151.1,151.09,0.03]
[1751809403210,7.42581572,151.11,151.09,0.03]
[1751809404316,14.04356827,151.11,151.09,0.03]
[1751809404502,7.42581572,151.1,151.09,0.03]
[1751809405500,7.42581572,151.11,151.09,0.03]
[1751809405808,7.42581572,151.1,151.09,0.03]
[1751809406206,15.60441572,151.1,151.09,1e-08]
[1751809406717,40.87219826,151.1,151.09,1e-08]
[1751809407318,22.2225494,151.1,151.09,1e-08]
[1751809408125,14.01003565,151.1,151.09,1e-08]
[1751809408420,6.61813368,151.1,151.09,1e-08]
[1751809409304,14.00626024,151.11,151.09,1e-08]
[1751809409507,6.61681995,151.13,151.09,1e-08]
[1751809409893,14.00269697,151.13,151.09,1e-08]
[1751809410101,7.38587702,151.13,151.09,1e-08]
[1751809410412,7.96,151.16,151.09,1e-08]
[1751809410590,14.57558956,151.16,151.09,1e-08]
[1751809410792,7.38327512,151.15,151.09,1e-08]
[1751809411207,6.61638216,151.14,151.09,1e-08]
[1751809414306,23.15733756,151.14,151.09,1e-08]
[1751809414506,7.38327512,151.13,151.09,1e-08]
[1751809415705,6.6172578,151.12,151.09,1e-08]
[1751809416018,87.8172578,151.12,151.09,1e-08]
[1751809416311,7.38327512,151.11,151.09,1e-08]
[1751809416532,87.8172578,151.12,151.09,1e-08]
[1751809417018,6.61813368,151.1,151.09,1e-08]
[1751809418329,13.99665013,151.11,151.09,1e-08]
[1751809418497,81.2,151.12,151.09,1e-08]
[1751809418919,6.61713019,151.13,151.09,1e-08]
[1751809419222,6.6165181,151.14,151.09,1e-08]
[1751809420000,7.37684673,151.15,151.09,1e-08]
[1751809420001,13.99281236,151.15,151.09,1e-08]
[1751809420912,6.61596563,151.15,151.09,1e-08]
[1751809422298,14.57556303,151.16,151.09,1.60640001]
[1751809423407,14.57556303,151.16,151.1,6.61813368]
[1751809426327,7.37955285,151.15,151.09,8.22486773]
[1751809426529,14.57556303,151.16,151.09,8.22486773]
[1751809429007,26.0,151.18,151.09,8.22486773]
[1751809429308,7.38021973,151.17,151.09,8.22486773]
[1751809429619,6.61478209,151.18,151.09,8.22486773]
[1751809429620,13.99500182,151.18,151.09,8.22486773]
[1751809430627,13.99500182,151.18,151.09,24.77129701]
[1751809431351,6.90263223,151.16,151.1,6.90263223]
[1751809431713,6.90263223,151.16,151.11,6.61769571]
[1751809432436,7.38021973,151.17,151.11,6.61769571]
[1751809432437,6.90263223,151.15,151.11,6.61769571]
[1751809432829,7.38021973,151.17,151.12,6.90263223]
[1751809433028,6.90263223,151.19,151.13,6.90263223]
[1751809433616,6.90263223,151.19,151.14,6.61638216]
[1751809434322,0.06,151.2,151.14,6.61638216]
[1751809434520,0.06,151.2,151.15,14.78963223]
[1751809435444,0.06,151.2,151.16,6.90263223]
[1751809436240,0.06,151.2,151.17,6.61506912]
[1751809438344,6.96263223,151.2,151.16,6.61550674]
[1751809439642,6.90263223,151.19,151.15,14.50281513]
[1751809440150,0.06,151.24,151.23,26.0]
[1751809440319,0.1,151.27,151.26,26.0]
[1751809440519,9.23987746,151.34,151.23,47.18606622]
[1751809440520,0.1,151.36,151.31,24.94384886]
[1751809441038,0.1,151.36,151.32,6.90263223]
[1751809441241,1e-08,151.36,151.35,6.90263223]
[1751809441441,9.23987746,151.5,151.43,26.0]
[1751809441649,0.030969,151.51,151.46,6.90263223]
[1751809441867,0.030969,151.51,151.45,26.0]
[1751809442156,0.030969,151.51,151.49,6.90263223]
[1751809442444,1.09481,151.58,151.51,18.64964886]
[1751809442637,1.09481,151.58,151.53,6.90263223]
[1751809442836,1.09481,151.58,151.53,29.62744681]
[1751809443145,1.09481,151.58,151.57,44.64964886]
[1751809443322,1.09481,151.58,151.57,36.97779795]
[1751809443524,10.97779795,151.7,151.61,26.0]
[1751809443741,6.59022011,151.74,151.65,10.97779795]
[1751809443940,10.97779795,151.71,151.65,10.97779795]
[1751809444144,0.030969,151.77,151.73,26.0]
[1751809444327,0.030969,151.77,151.76,29.62744681]
[1751809444528,1.4011062,151.83,151.79,26.0]
[1751809444830,1.4011062,151.83,151.73,6.59036401]
[1751809445152,1.4011062,151.83,151.76,26.0]
[1751809445659,10.97779795,151.77,151.71,26.0]
[1751809445842,10.97779795,151.76,151.71,26.0]
[1751809446162,24.4532583,151.83,151.7,10.97779795]
[1751809446452,10.97779795,151.77,151.71,10.97779795]
[1751809446643,10.97779795,151.78,151.72,10.97779795]
[1751809446843,16.52696758,151.78,151.68,18.64964886]
[1751809447037,16.52696758,151.78,151.72,16.52696758]
[1751809447232,16.52696758,151.78,151.7,26.0]
[1751809447446,16.52696758,151.82,151.76,16.52696758]
[1751809447625,1.4011062,151.83,151.77,16.52696758]
[1751809447831,17.92807378,151.83,151.77,16.52696758]
[1751809448028,17.92807378,151.83,151.69,35.54]
[1751809448029,16.52696758,151.81,151.69,35.54]
[1751809448259,16.52696758,151.78,151.69,35.54]
[1751809448468,16.52696758,151.75,151.69,16.52696758]
[1751809448638,16.52696758,151.74,151.67,158.14669165]
[1751809448834,23.05361612,151.82,151.7,16.52696758]
[1751809449153,16.52696758,151.76,151.7,16.52696758]
[1751809449527,16.52696758,151.72,151.67,158.14669165]
[1751809449762,6.2326,151.79,151.67,158.14669165]
[1751809449929,16.52696758,151.73,151.67,174.67365923]
[1751809450133,0.03,151.77,151.67,158.14669165]
[1751809450352,16.52696758,151.71,151.67,158.14669165]
[1751809450558,16.52696758,151.68,151.67,158.14669165]
[1751809451431,16.52696758,151.68,151.59,7.88]
[1751809451632,16.52696758,151.61,151.55,16.52696758]
[1751809451864,26.0,151.67,151.54,145.70033171]
[1751809452036,7.88,151.73,151.54,145.70033171]
[1751809452037,16.52696758,151.61,151.55,16.52696758]
[1751809452235,16.52696758,151.58,151.54,145.70033171]
[1751809452758,16.52696758,151.56,151.52,7.88]
[1751809453150,16.52696758,151.56,151.5,16.52696758]
[1751809453533,16.52696758,151.55,151.49,0.06]
[1751809453733,16.52696758,151.54,151.49,0.06]
[1751809454359,16.48695943,151.64,151.49,0.06]
[1751809454360,6.59804697,151.56,151.49,0.06]
[1751809454538,16.52696758,151.55,151.49,16.58696758]
[1751809454953,16.52696758,151.55,151.49,0.06]
[1751809455154,16.52696758,151.52,151.49,0.06]
[1751809455357,16.52696758,151.52,151.46,23.92696758]
[1751809455542,16.52696758,151.54,151.48,16.52696758]
[1751809456060,16.52696758,151.53,151.47,16.52696758]
[1751809456634,6.59638471,151.6,151.46,23.92696758]
[1751809456635,16.52696758,151.51,151.46,23.92696758]
[1751809456855,16.52696758,151.5,151.46,7.4]
[1751809457034,16.52696758,151.49,151.44,16.52696758]
[1751809457361,16.52696758,151.47,151.41,16.52696758]
[1751809457588,16.52696758,151.46,151.4,128.60744831]
[1751809457855,16.52696758,151.45,151.4,112.08048073]
[1751809458966,32.59949186,151.53,151.4,112.08048073]
[1751809459164,16.52696758,151.45,151.4,112.08048073]
[1751809460656,16.52696758,151.45,151.4,128.60744831]
[1751809460964,16.52696758,151.45,151.4,112.08048073]
[1751809461457,16.52696758,151.45,151.4,111.58048073]
[1751809461857,32.59954699,151.53,151.4,111.58048073]
[1751809462068,16.52696758,151.45,151.4,128.10744831]
[1751809462240,26.0,151.53,151.4,128.10744831]
[1751809462241,32.5993556,151.53,151.4,128.10744831]
[1751809462436,32.5993556,151.53,151.34,35.5]
[1751809462437,16.52696758,151.41,151.36,16.52696758]
[1751809462635,16.52696758,151.42,151.36,16.52696758]
[1751809462852,6.5993556,151.53,151.38,16.52696758]
[1751809463133,16.52696758,151.45,151.39,16.52696758]
[1751809463334,16.52696758,151.46,151.4,16.52696758]
[1751809463551,16.52696758,151.47,151.41,16.52696758]
[1751809463763,16.52696758,151.48,151.42,16.52696758]
[1751809464354,16.52696758,151.48,151.39,6.6054561]
[1751809464548,7.84,151.54,151.45,16.52696758]
[1751809464756,7.84,151.54,151.47,16.52696758]
[1751809464957,16.52696758,151.53,151.47,16.52696758]
[1751809465159,7.84,151.54,151.41,26.48964886]
[1751809465466,16.52696758,151.52,151.46,16.52696758]
[1751809465662,7.84,151.54,151.46,16.52696758]
[1751809465967,16.52696758,151.5,151.41,26.48964886]
[1751809466148,16.52696758,151.49,151.44,16.52696758]
[1751809466653,16.52696758,151.49,151.43,16.52696758]
[1751809466848,7.84,151.54,151.43,16.52696758]
[1751809466849,7.84,151.54,151.45,16.52696758]
[1751809467165,16.52696758,151.52,151.45,16.52696758]
[1751809467348,7.84,151.54,151.46,16.52696758]
[1751809467553,16.52696758,151.52,151.46,16.52696758]
[1751809468242,16.52696758,151.51,151.45,16.52696758]
[1751809468457,15.99821833,151.61,151.48,16.52696758]
[1751809468663,15.99821833,151.61,151.46,61.15544378]
[1751809468879,16.52696758,151.55,151.49,16.52696758]
[1751809469266,15.99821833,151.61,151.49,16.52696758]
[1751809469475,16.52696758,151.55,151.48,16.52696758]
[1751809469785,16.52696758,151.54,151.48,16.52696758]
[1751809469989,15.99821833,151.61,151.48,16.52696758]
[1751809470280,16.52696758,151.54,151.48,16.52696758]
[1751809470473,16.52696758,151.52,151.47,6.60196738]
[1751809470676,16.52696758,151.52,151.46,16.52696758]
[1751809470870,16.52696758,151.52,151.47,16.52696758]
[1751809471778,16.52696758,151.5,151.44,6.60327522]
[1751809471982,16.52696758,151.5,151.44,23.1302428]
[1751809472178,16.52696758,151.51,151.45,16.52696758]
[1751809472493,26.0,151.58,151.44,6.60327522]
[1751809472494,16.52696758,151.52,151.46,16.52696758]
[1751809472791,16.52696758,151.52,151.47,6.60196738]
[1751809472972,16.52696758,151.56,151.5,16.52696758]
[1751809473389,16.52696758,151.55,151.47,6.60196738]
[1751809473572,16.52696758,151.54,151.47,6.60196738]
[1751809473768,16.52696758,151.54,151.48,16.52696758]
[1751809474174,16.52696758,151.54,151.49,23.12806336]
[1751809474489,16.52696758,151.56,151.5,16.52696758]
[1751809476172,16.52696758,151.55,151.5,6.60066006]
[1751809476790,16.52696758,151.51,151.44,16.52696758]
[1751809476995,16.52696758,151.49,151.43,16.52696758]
[1751809477171,16.52696758,151.49,151.44,16.52696758]
[1751809477368,26.0,151.57,151.46,16.52696758]
[1751809477575,16.52696758,151.53,151.47,16.52696758]
[1751809477789,16.52696758,151.52,151.46,16.52696758]
[1751809478094,16.52696758,151.52,151.44,18.64964886]
[1751809478095,16.52696758,151.51,151.45,16.52696758]
[1751809478275,16.52696758,151.52,151.46,39.63537903]
[1751809478797,16.52696758,151.53,151.47,16.52696758]
[1751809479094,16.52696758,151.52,151.46,39.63537903]
[1751809479681,16.52696758,151.51,151.46,23.10841145]
[1751809479992,16.52696758,151.49,151.46,23.10841145]
[1751809480196,16.52696758,151.51,151.46,23.10841145]
[1751809481897,16.52696758,151.51,151.42,56.13525293]
[1751809482197,16.52696758,151.51,151.45,16.52696758]
[1751809482605,16.52696758,151.5,151.44,16.52696758]
[1751809482805,16.52696758,151.5,151.45,16.52696758]
[1751809482982,16.52696758,151.51,151.45,16.52696758]
[1751809483689,16.52696758,151.5,151.45,6.60283922]
[1751809483873,16.52696758,151.49,151.45,6.60283922]
[1751809484278,16.52696758,151.47,151.45,6.60283922]
[1751809484597,16.52696758,151.46,151.45,6.60283922]
[1751809484785,16.52696758,151.48,151.45,6.60283922]
[1751809485303,16.52696758,151.49,151.45,6.60283922]
[1751809486005,16.52696758,151.49,151.44,6.60327522]
[1751809486192,16.52696758,151.49,151.44,23.11146328]
[1751809486389,6.3141,151.52,151.45,16.52696758]
[1751809486594,23.81458399,151.52,151.46,16.52696758]
[1751809486782,7.28761641,151.51,151.46,16.52696758]
[1751809487286,7.28761641,151.52,151.46,16.52696758]
[1751809487486,16.52696758,151.53,151.47,16.52696758]
[1751809487686,16.52696758,151.53,151.48,16.52696758]
[1751809487911,16.52696758,151.53,151.47,16.52696758]
[1751809488205,16.52696758,151.53,151.48,6.60153155]
[1751809488999,16.52696758,151.53,151.44,33.01637612]
[1751809489000,16.52696758,151.5,151.45,6.60283922]
[1751809489307,16.52696758,151.48,151.45,6.60283922]
[1751809489504,16.52696758,151.47,151.45,6.60283922]
[1751809489891,16.52696758,151.46,151.42,6.6041474]
[1751809490097,16.52696758,151.45,151.42,6.6041474]
[1751809490299,16.52696758,151.46,151.4,33.09919803]
[1751809490602,8.92331131,151.5,151.45,16.52696758]
[1751809490805,7.30601338,151.49,151.45,16.52696758]
[1751809490987,7.30601338,151.48,151.45,16.52696758]
[1751809491190,7.30601338,151.47,151.45,16.52696758]
[1751809491398,7.30601338,151.49,151.45,16.52696758]
[1751809491712,7.30601338,151.48,151.42,18.64964886]
[1751809491893,7.31258448,151.51,151.42,18.64964886]
[1751809492095,7.31258448,151.5,151.47,16.52696758]
[1751809492298,7.31258448,151.49,151.48,6.60153155]
[1751809492801,16.52696758,151.53,151.48,6.60153155]
[1751809493001,7.32400358,151.52,151.48,6.60153155]
[1751809493205,7.32400358,151.51,151.48,6.60153155]
[1751809493408,7.32400358,151.5,151.48,6.60153155]
[1751809493612,7.32400358,151.49,151.48,23.12849913]
[1751809494117,16.52696758,151.54,151.48,39.63232801]
[1751809495811,25.45027889,151.54,151.48,39.63232801]
[1751809496203,16.52696758,151.53,151.48,39.63232801]
[1751809496404,25.45027889,151.53,151.48,39.63232801]
[1751809496591,16.52696758,151.52,151.48,6.60153155]
[1751809496791,10.99069552,151.52,151.48,6.60153155]
[1751809496990,19.91400683,151.52,151.48,6.60153155]
[1751809497207,10.99069552,151.52,151.48,6.60153155]
[1751809497415,10.99069552,151.51,151.48,6.60153155]
[1751809498218,19.91400683,151.52,151.47,6.60196738]
[1751809498414,10.99069552,151.52,151.47,6.60196738]
[1751809498618,10.99069552,151.51,151.47,6.60196738]
[1751809498809,8.92331131,151.52,151.47,23.10688584]
[1751809499118,8.92331131,151.53,151.48,10.99069552]
[1751809499313,9.27255695,151.55,151.49,10.99069552]
[1751809499518,0.03,151.55,151.52,10.99069552]
[1751809499707,11.02069552,151.55,151.47,49.10688584]
[1751809499903,11.02069552,151.55,151.49,10.99069552]
[1751809500128,0.03,151.55,151.52,10.99069552]
[1751809500302,0.03,151.55,151.51,10.99069552]
[1751809500620,10.99069552,151.53,151.49,6.60109578]
[1751809500817,11.02069552,151.55,151.49,17.5917913]
[1751809501001,0.03,151.55,151.49,34.09453075]
[1751809501312,0.03,151.55,151.51,10.99069552]
[1751809502010,0.03,151.55,151.5,10.99069552]
[1751809502224,0.03,151.55,151.53,6.59935326]
[1751809502592,10.99069552,151.54,151.53,6.59935326]
[1751809502794,0.03,151.55,151.53,6.59935326]
[1751809503600,0.03,151.55,151.52,6.59966494]
[1751809504303,0.03,151.55,151.51,10.99069552]
[1751809505018,0.03,151.55,151.5,10.99069552]
[1751809505896,7.38684428,151.54,151.5,10.99069552]
[1751809506125,0.03,151.55,151.5,10.99069552]
[1751809506303,7.3869563,151.54,151.51,6.6002244]
[1751809506509,0.03,151.55,151.51,6.6002244]
[1751809506702,7.38654173,151.54,151.51,17.59091992]
[1751809506903,0.03,151.55,151.53,10.99069552]
[1751809507135,0.03,151.55,151.5,6.60051592]
[1751809507136,11.02069552,151.55,151.5,6.60051592]
[1751809507428,10.99069552,151.53,151.48,6.60153155]
[1751809507734,6.62862373,151.55,151.48,6.60153155]
[1751809507735,0.03,151.55,151.52,10.99069552]
[1751809507935,0.03,151.55,151.54,10.99069552]
[1751809508102,7.41610178,151.55,151.54,10.99069552]
[1751809508307,7.38540067,151.58,151.55,23.09468821]
[1751809508608,20.23325247,151.64,151.57,10.99069552]
[1751809508946,10.99069552,151.6,151.53,6.5989796]
[1751809509117,10.99069552,151.57,151.53,6.5989796]
[1751809509308,32.32230629,151.65,151.56,10.99069552]
[1751809509309,6.59442129,151.65,151.56,10.99069552]
[1751809509625,10.99069552,151.66,151.54,50.85274886]
[1751809509931,10.99069552,151.62,151.57,10.99069552]
[1751809510229,10.99069552,151.62,151.56,10.99069552]
[1751809510532,13.00663696,151.67,151.59,10.99069552]
[1751809510834,13.00663696,151.67,151.58,17.58787192]
[1751809511417,13.00663696,151.67,151.59,10.99069552]
[1751809511924,13.00663696,151.67,151.58,10.99069552]
[1751809512426,6.59247798,151.69,151.62,10.99069552]
[1751809512640,10.99069552,151.67,151.61,10.99069552]
[1751809512839,6.59247798,151.69,151.6,10.99069552]
[1751809513130,6.59247798,151.69,151.61,10.99069552]
[1751809513322,10.99069552,151.67,151.61,10.99069552]
[1751809513510,10.99069552,151.66,151.61,10.99069552]
[1751809513703,6.59247798,151.69,151.58,26.0]
[1751809513704,10.99069552,151.64,151.58,6.5971764]
[1751809513909,10.99069552,151.63,151.58,6.5971764]
[1751809514114,6.59438058,151.65,151.57,10.99069552]
[1751809514115,10.99069552,151.62,151.57,6.59755612]
[1751809514310,10.99069552,151.61,151.57,6.59755612]
[1751809514530,6.59438058,151.65,151.57,6.59755612]
[1751809514740,26.1,151.7,151.57,6.59755612]
[1751809514741,10.99069552,151.67,151.61,10.99069552]
[1751809514920,10.99069552,151.69,151.64,10.99069552]
[1751809515238,0.1,151.7,151.58,18.64964886]
[1751809515239,0.1,151.7,151.66,10.99069552]
[1751809515816,0.1,151.7,151.66,6.59369642]
[1751809516020,0.1,151.7,151.67,10.99069552]
[1751809516335,0.1,151.7,151.66,17.58439194]
[1751809517335,0.1,151.7,151.67,10.99069552]
[1751809517536,0.1,151.7,151.66,6.59369642]
[1751809517841,0.1,151.7,151.69,17.58308789]
[1751809518036,0.1,151.7,151.68,17.58340531]
[1751809518337,0.1,151.7,151.67,10.99069552]
[1751809518518,0.1,151.7,151.66,10.99069552]
[1751809518834,0.1,151.7,151.67,10.99069552]
[1751809519330,0.1,151.7,151.65,0.5]
[1751809519520,0.1,151.7,151.66,10.99069552]
[1751809519723,0.1,151.7,151.67,6.59326168]
[1751809520012,0.1,151.7,151.69,10.99069552]
[1751809520317,10.19069552,151.75,151.67,6.59326168]
[1751809520519,6.58947677,151.76,151.68,10.99069552]
[1751809520726,10.99069552,151.73,151.68,10.99069552]
[1751809520923,6.58947677,151.76,151.68,10.99069552]
[1751809521335,10.99069552,151.76,151.7,10.99069552]
[1751809521539,6.4132,151.77,151.67,6.59326168]
[1751809521540,10.99069552,151.74,151.67,6.59326168]
[1751809521835,10.99069552,151.74,151.69,17.5829159]
[1751809522133,13.00219191,151.77,151.69,17.5829159]
[1751809522324,17.40389552,151.77,151.71,10.99069552]
[1751809522524,10.99069552,151.76,151.69,6.59222038]
[1751809522725,6.4132,151.77,151.7,10.99069552]
[1751809522726,13.0022506,151.77,151.7,10.99069552]
[1751809522932,6.58844564,151.79,151.73,10.99069552]
[1751809523124,25.37839514,151.8,151.74,10.99069552]
[1751809523327,8.1337,151.82,151.74,10.99069552]
[1751809523534,17.5779981,151.81,151.75,10.99069552]
[1751809523716,14.72047457,151.82,151.76,10.99069552]
[1751809523910,10.99069552,151.81,151.75,10.99069552]
[1751809524110,10.99069552,151.81,151.75,17.58041168]
[1751809524634,12.39180172,151.83,151.77,10.99069552]
[1751809524836,7.28644645,151.82,151.77,10.99069552]
[1751809525037,7.28644645,151.82,151.76,18.64964886]
[1751809525243,1.4011062,151.83,151.81,10.99069552]
[1751809525540,1.4011062,151.83,151.79,10.99069552]